Cogmind - Beta 17.1 @@@ ROGUE MODE // 2026.09.02 @ 18:01:46 Player: 7H-NLC Result: Destroyed by as-10262 with Assembled Rifle Performance ------------- Evolutions (0) 0 Regions Visited (2) 400 Robots Destroyed (12) 60 Value Destroyed (133) 133 Prototype IDs (2) 40 Alien Tech Used (0) 0 Bonus (0) 0 TOTAL SCORE: 633 Bonus ------- None Cogmind --------- Core Integrity 0/250 Matter 280/300 Energy 100/100 System Corruption 0% Temperature Cool (0) Movement Walking (260) Ox2 Location -10/Mines Parts ------- > --- POWER (1) -------- (None) > --- PROPULSION (2) --- Aluminum Leg Aluminum Leg > --- UTILITY (2) ------ High-capacity Storage Unit Seismic Detector > --- WEAPON (2) ------- Hammer > --- INVENTORY (20) --- Aluminum Leg Aluminum Leg Large Battery (200) Large Matter Pod (133) High-capacity Matter Pod (0) Beam Cannon Mining Laser Peak State ------------ > --- POWER ------------ Ion Engine > --- PROPULSION ------- Aluminum Leg Aluminum Leg > --- UTILITY ---------- Small Storage Unit Authchip [Processor] > --- WEAPON ----------- Medium Laser Medium Laser > --- INVENTORY -------- Wheel Mining Laser [Rating: 10] Favorites ----------- Power Ion Engine Engine Ion Engine Propulsion Aluminum Leg Leg Aluminum Leg Wheel Wheel Utility Seismic Detector Device Seismic Detector Storage Small Storage Unit Hackware Authchip [Processor] Weapon Medium Laser Energy Gun Medium Laser Impact Weapon Hammer Build | -11 -10 -10 ------- Run | Yrd Mat Min Slots Evolved . | . . . Power . | . . . Propulsion . | . . . Utility . | . . . Weapon . | . . . Parts Attached 15 | 7 5 3 Power 1 | 1 . . Engine 1 | 1 . . Core . | . . . Reactor . | . . . Propulsion 7 | 2 3 2 Treads . | . . . Leg 5 | 2 1 2 Wheel 2 | . 2 . Hover . | . . . Flight . | . . . Utility 4 | 2 2 . Device 1 | 1 . . Storage 2 | 1 1 . Processor . | . . . Hackware 1 | . 1 . Protection . | . . . Artifact . | . . . Weapon 3 | 2 . 1 Energy Gun 2 | 2 . . Energy Cannon . | . . . Ballistic Gun . | . . . Ballistic Cannon . | . . . Launcher . | . . . Special Weapon . | . . . Impact Weapon 1 | . . 1 Slashing Weapon . | . . . Piercing Weapon . | . . . Special Melee Weapon . | . . . Unidentified Prototypes . | . . . Parts Lost 5 | . . 5 Power 1 | . . 1 Propulsion 2 | . . 2 Utility . | . . . Weapon 2 | . . 2 Highest Loss Streak 5 | . . 5 To Critical Strikes . | . . . Average Backups 5 | . 4 9 Power . | . . . Propulsion 2 | . 1 3 Utility 1 | . . 2 Weapon 2 | . 1 2 Tool/Special . | . . . Unused Backups 5 | . . 5 Power . | . . . Propulsion . | . . . Utility 3 | . . 3 Weapon 2 | . . 2 Tool/Special . | . . . Average Slot Usage (%) 97 | . 100 93 Engine 12 | . 14 10 Leg 16 | . 24 2 Wheel 11 | . 3 24 Device 14 | . 14 14 Storage 14 | . 14 14 Energy Gun 26 | . 28 24 Peak Build Rating 10 | 7 10 8 Average Rating 6 | 5 7 7 On Entrance 4 | . 7 7 Avg Prop Armor Cover (%) 10 | . 10 . Naked Turns . | . . . Heaviest Build 50 | 15 50 50 Greatest Support 20 | 20 20 20 Greatest Overweight (x) 4 | 3 4 4 Average Overweight (x) . | . . 2 Largest Inventory Capacity 20 | 8 20 20 Average Capacity 12 | 7 9 20 Most Carried 15 | 2 9 15 Average Carried 6 | . 4 12 Final Capacity 20 | 8 20 20 Final Carried 9 | 2 9 7 Class Distribution -------------------- 100% | Mutant Dominant Class ---------------- Mutant | -10/Materials Mutant | -10/Mines Resources | -11 -10 -10 ----------- Run | Yrd Mat Min Matter Collected 435 | 270 57 108 Remotely . | . . . Salvage Created 278 | 58 185 35 Parts 24 | 8 16 . Haulers Intercepted 1 | . 1 . Recyclers Shooed 1 | . 1 . Parts Field Recycled . | . . . Retrieved Matter . | . . . Parts Self-Destructed . | . . . Prevented . | . . . Parts Restored . | . . . Kills | -11 -10 -10 ------- Run | Yrd Mat Min Combat Hostiles Destroyed 10 | . 7 3 Melee 3 | . . 3 Guns 7 | . 7 . Classes Destroyed 6 | 1 4 1 Tunneler 3 | 3 . . Hauler 1 | . 1 . Watcher 1 | . 1 . Swarmer 6 | . 6 . Grunt 1 | . 1 . Assembled 3 | . . 3 Best Kill Streak 3 | 3 3 3 Combat Bots Only 3 | . 3 3 Max Kills in Single Turn 1 | 1 1 1 Gunslinging . | . . . Exploded . | . . . Melee 1 | . . 1 Uniques/NPCs Destroyed . | . . . Combat | -11 -10 -10 -------- Run | Yrd Mat Min Hostile Shots Fired 64 | . 31 33 Missed 15 | . 6 9 Hits 49 | . 25 24 Melee 15 | . . 15 Projectile 34 | . 25 9 Damage Taken 777 | . 208 569 Core 253 | . 36 217 Absorbed by Shields . | . . . Core Remaining (%) 100 | 100 . . Volleys Fired 32 | 6 24 2 Largest 2 | 2 2 2 Hottest 100 | 100 100 100 Shots Fired 64 | 12 48 4 Gun 64 | 12 48 4 Cannon . | . . . Launcher . | . . . Special . | . . . Kinetic . | . . . Thermal 64 | 12 48 4 Explosive . | . . . Electromagnetic . | . . . Robot Hit Streak 9 | 8 9 2 Robot Miss Streak 4 | 2 4 1 Penetration Max . | . . . Secondary Targets 2 | . 2 . Max Gunslinging Chain 1 | . 1 . Shots Hit Robots 38 | 8 22 8 Core Hits 18 | 3 11 4 Critical Kills 1 | . . 1 Critical Parts Destroyed . | . . . Critical Strikes 3 | 1 1 1 Burn 2 | 1 1 . Smash 1 | . . 1 Melee Attacks 14 | . . 14 Impact 14 | . . 14 Slashing . | . . . Piercing . | . . . Sneak Attacks . | . . . Combat Hostiles . | . . . Follow-up Attacks . | . . . Damage Inflicted 576 | 100 291 185 Guns 399 | 100 274 25 Cannons . | . . . Explosions . | . . . Melee 153 | . . 153 Ramming 24 | . 17 7 Kinetic . | . . . Thermal 399 | 100 274 25 Explosive . | . . . Electromagnetic . | . . . Impact 153 | . . 153 Slashing . | . . . Piercing . | . . . Highest Corruption . | . . . Average Corruption . | . . . Corruption Purged . | . . . Corruption Blocked . | . . . Overload Shots . | . . . Overflow Damage . | . . . Projectiles . | . . . Explosions . | . . . Melee . | . . . Knockbacks . | . . . Impact . | . . . Kinetic . | . . . Secondary . | . . . Self-Inflicted Damage 3 | . . 3 Shots . | . . . Rammed 1 | . . 1 Targets Rammed 4 | . 3 1 Kicked 3 | . 3 . Crushed . | . . . Highest Temperature 273 | 117 273 98 Average Temperature 76 | 46 87 47 Received Heat Transfer 90 | . 30 60 Siege Activations . | . . . Martial Activations . | . . . Shielding Activations . | . . . Robots Disrupted . | . . . Combat Hostiles . | . . . Robots Corrupted . | . . . Combat Hostiles . | . . . Parts Fried . | . . . Impact Corruptions . | . . . Robots Melted . | . . . Combat Hostiles . | . . . Parts Melted . | . . . Heat Transferred 1332 | 370 888 74 Parts Sabotaged . | . . . Parts Stolen . | . . . Parts Stripped . | . . . Power Chain Reactions . | . . . Alert | -11 -10 -10 ------- Run | Yrd Mat Min Maximum Alert Level . | . . . Low Security (%) 100 | 100 100 100 Level 1 . | . . . Level 2 . | . . . Level 3 . | . . . Level 4 . | . . . Level 5 . | . . . High Security . | . . . Max Security . | . . . Peak Influence 131 | 10 131 13 Initial 13 | . 3 13 Average 27 | 1 45 1 Influence Increases 225 | 15 210 . Destroy 0b10 Robot/C 140 | . 140 . Destroy 0b10 Robot/NC 25 | 15 10 . Destroy Leader 24 | . 24 . Successful Hack 5 | . 5 . Destroy Structure 1 | . 1 . Lose Combat Pursuer 30 | . 30 . Influence Decreases 225 | 10 181 34 Entered New Map 23 | . 2 21 Time Decay 202 | 10 179 13 Squads Dispatched 1 | . 1 . Investigation . | . . . Extermination . | . . . Reinforcement 1 | . 1 . Assault . | . . . Garrison . | . . . Intercept . | . . . Searches Triggered . | . . . Construction Impeded . | . . . Haulers Reinforced . | . . . Active Scanning Responses . | . . . Cargo Convoy Interrupts . | . . . Stealth | -11 -10 -10 --------- Run | Yrd Mat Min Distress Signals 1 | . 1 . Communications Jammed . | . . . Distress Signals . | . . . Times Spotted 25 | . 14 11 Peak Tracking Total 16 | . 4 16 Tactical Retreats 3 | . 1 2 Traps | -11 -10 -10 ------- Run | Yrd Mat Min Traps Triggered . | . . . Indirectly . | . . . Trap Hack Attempts . | . . . Triggered . | . . . Disarmed . | . . . Reprogrammed . | . . . Reused 5 | . . 5 Traps Extracted . | . . . Installed 5 | . . 5 Triggered . | . . . Most Traps Carried 5 | . . 5 Machines | -11 -10 -10 ---------- Run | Yrd Mat Min Machines Disabled . | . . . Max in Single Turn . | . . . Machines Repaired . | . . . Machines Dismantled . | . . . Machines Sabotaged . | . . . Overloaded Fab Kills . | . . . Hacking | -11 -10 -10 --------- Run | Yrd Mat Min Machines Accessed 3 | . 2 1 Terminals 3 | . 2 1 Fabricators . | . . . Repair Stations . | . . . Recycling Units . | . . . Scanalyzers . | . . . Garrison Access . | . . . Total Hacks 8 | . 3 5 Successful 1 | . 1 . Failed 7 | . 2 5 Catastrophic 1 | . 1 . Database Lockouts . | . . . Manual 4 | . . 4 Terminals 8 | . 3 5 Fabricators . | . . . Repair Stations . | . . . Recycling Units . | . . . Scanalyzers . | . . . Garrison Access . | . . . Terminal Hacks 1 | . 1 . Prototype ID Bank 1 | . 1 . Fabricator Hacks . | . . . Repair Station Hacks . | . . . Recycling Unit Hacks . | . . . Scanalyzer . | . . . Garrison Access Hacks . | . . . Unauthorized Hacks . | . . . Terminals . | . . . Fabricators . | . . . Repair Stations . | . . . Recycling Units . | . . . Scanalyzers . | . . . Garrison Access . | . . . Data Cores Recovered . | . . . Used . | . . . Hacking Detections 3 | . 2 1 Full Trace Events . | . . . Feedback Events . | . . . Feedback Blocked . | . . . Robot Schematics Acquired . | . . . Robots Built . | . . . Authchips . | . . . Time . | . . . Total Robot Build Rating . | . . . Part Schematics Acquired . | . . . Parts Built . | . . . Authchips . | . . . Time . | . . . Total Part Build Rating . | . . . Part Studies Acquired . | . . . Parts Repaired . | . . . Time . | . . . Parts Recycled . | . . . Recycled Matter . | . . . Retrieved Matter . | . . . Retrieved Components . | . . . Parts Scanalyzed . | . . . Part Schematics Acquired . | . . . Parts Damaged . | . . . Bothacking | -11 -10 -10 ------------ Run | Yrd Mat Min Used RIF Installer . | . . . Robots Hacked . | . . . Non-combat . | . . . Combat . | . . . Robot Hacks Applied . | . . . Relay Couplers Released . | . . . Fabnet Peak Effective % . | . . . Robots Rewired . | . . . Allies Hacked . | . . . Hacks Repelled . | . . . Allies | -11 -10 -10 -------- Run | Yrd Mat Min Total Allies . | . . . Largest Group . | . . . Highest-Rated Group . | . . . Highest-Rated Ally . | . . . Total Orders . | . . . Ally Attacks . | . . . Total Damage . | . . . Kills . | . . . Allies Corrupted . | . . . Allies Melted . | . . . Intel | -11 -10 -10 ------- Run | Yrd Mat Min Active Infowar (turns) 877 | 18 558 301 Seismic 877 | 18 558 301 Robot Analysis Total . | . . . Derelict Logs Recovered . | . . . Drone Launches . | . . . Drone Recoveries . | . . . Exploration | -11 -10 -10 ------------- Run | Yrd Mat Min Turns Passed 960 | 99 560 301 Spaces Moved 657 | 54 386 217 Core 12 | 12 . . Treads . | . . . Legs 365 | 42 323 . Wheels 280 | . 63 217 Hover . | . . . Flight . | . . . Fastest Speed 50 | 50 110 110 Average Speed 116 | 120 120 110 Slowest Speed 260 | 200 260 140 Overloaded Moves . | . . . Propulsion Burnouts . | . . . Robots Hopped . | . . . Potential Cave-ins . | . . . Cave-ins Triggered . | . . . Exploration Rate (%) 35 | 4 67 35 Regions Visited 2 Branch Regions 1 Pre-discovered Areas . | . . . Known Exits Taken . | . . . Unknown Exits Taken 2 | 1 1 . Scrap Searched 1 | . . 1 Spaces Dug . | . . . Terrain Destroyed . | . . . Melee . | . . . Projectile . | . . . AOE . | . . . Terrain Rammed . | . . . Walls Destroyed . | . . . Machines Disabled . | . . . Actions | -11 -10 -10 --------- Run | Yrd Mat Min Total 759 | 73 433 253 Wait 10 | 4 6 . Move 655 | 53 385 217 Hop . | . . . Pick Up 16 | 3 7 6 Fast Attach 6 | 6 . . Attach 4 | 1 . 3 Detach . | . . . Swap 6 | . 6 . Drop 7 | . 2 5 Fire 32 | 6 24 2 Melee 14 | . . 14 Ram 1 | . . 1 Kick 3 | . 3 . Crush . | . . . Escape Stasis . | . . . Rewire . | . . . Trap 5 | . . 5 Miscellaneous . | . . . Route ------- -11/Scrapyard -10/Materials (discovered 3 exits: [*Mat] / *Min x2) -10/Mines History --------- Turn | Location | Event 20 | -11/Scrapyard | Discovered new exit (range 16) 100 | -11/Scrapyard | Entered Materials 131 | -10/Materials | Discovered new exit (range 14) 316 | -10/Materials | Build established: Mutant 437 | -10/Materials | Discovered new exit (range 16) 585 | -10/Materials | Discovered new exit (range 6) 660 | -10/Materials | Entered Mines 703 | -10/Mines | Found a hidden stash of uninstalled traps 756 | -10/Mines | Met a Derelict bent on vengeance 876 | -10/Mines | Assembled infested the area 944 | -10/Mines | Core integrity fell below 50% 951 | -10/Mines | Core integrity fell below 20% 961 | -10/Mines | Destroyed by as-10262 with Assembled Rifle Last Messages --------------- 00913_ as-35874 triggered Blade Trap. 00913_ Massive razor-sharp blades shoot up from within the floor. 00914_ as-35874 triggered Blade Trap. 00914_ Massive razor-sharp blades shoot up from within the floor. 00914_ Med. Laser destroyed. 00914_ Wheel destroyed. 00915_ Dropped Blade Trap. 00915_ Installed Blade Trap. 00917_ as-35874 triggered Blade Trap. 00917_ Massive razor-sharp blades shoot up from within the floor. 00917_ Dropped Blade Trap. 00918_ Installed Blade Trap. 00920_ as-35874 triggered Blade Trap. 00920_ Massive razor-sharp blades shoot up from within the floor. 00935_ Med. Laser destroyed. 00948_ Wheel destroyed. 00951_ as-35874 destroyed. 00954_ as-92918 destroyed. 00959_ as-76014 suffers critical hit (Smash). 00959_ as-76014 destroyed. Map ----- +----------------------------------------------------+ | ???## #?????????????????? | | ????## #?????????????????? | | ?????#### ##?????????????????? | | ????????## ###??####????????????? | | ?????????# ##???## ##???????????? | | ?????????# ####### ##??????????? | | ?????????# ###????????? | | ?????????# ##???????? | | ?????????## ###### #???????? | | ??????????###????## ## #??????? | | ??????????????????## ##??? #????? | | ???????????????????# ##?????? #???? | | ???????????????????# #?????????#???? | | ???????????????????# #?????????????? | | ???????????????????# #?????????????? | | ?????????????####### #?????????????? | | ?????????????# #?????????????? | | ?????????????# #######?????????????? | | ?????????????# #???????????????????? | | ?????????????# #?????????????###???? | | ??????????#### #???????????## ##### | | ??????????# #???????##### = # | | ??????????# ########??## *% | | ??????????# #??## #?## ## | | ??????????# #??# ### ##??? | | ??????????#@#?## #####?????? | | ??????????#%### ##?????????? | | ????????###a## ##??????????? | | ????????# a ## #???????????? | | ????????# ### #???????????? | | ????##### ## #???????????? | | ????# #???????????? | | ????# #???????????? | | ????# ####### ### ##???????????? | | ????# #?????## ##?####????????????? | | ????# #??????####???#########??????? | | ????# #????????????## #??????? | | ????# #????????????#T #??????? | | ????# #?????????????# #??????? | | ????# #?????????????# #??????? | | ????# #?????????????### #####??????? | | ????# #???????????????# #??????????? | | ????# #???????????????# #??????????? | | ????# #####?????????### #??????????? | | ???## ########### #??????????? | | ???# ###??????????? | | ??# ############????????????? | | ??# #???????????????????????? | | ??# ##???????????????????????? | | ??## ##????????????????????????? | +----------------------------------------------------+ Best States ------------- Heat Dissipation 25 Energy Generation 10 Energy Capacity 250 Matter Stores 300 Matter Capacity 300 Sight Range 16 Terrain Scan Density 10 Evasion (%) 55 Item Schematics ----------------- None Robot Schematics ------------------ None Fabricated ------------ Nothing Repaired ---------- Nothing Studied --------- None Alien Tech Used ----------------- None Achievements -------------- None Challenges ------------ None Game ------ Seed PoweredStructuralTether Manual? 0 Play Time 00:08:59 Cumulative 475.3 hours Start 2026.09.02 @ 17:55:04 End 2026.09.02 @ 18:01:46 Sessions 1 Manual Loads 0 Difficulty Rogue Special Mode None Game No. 347 Rogue 347 Adventurer 0 Explorer 0 Win Type - Total 9 Types 4/0/3/2/0/0/0/0/0/0 Lore% 57 Gallery% 71 Achievement% 57 Wizard Run 0 Options --------- Layout 2 ASCII 0 Keyboard 1 Movement Vi Keybinds 0 Fullscreen 2 Font 32/Smallcaps Map View 77x44 Zoom Use 0% Tactical HUD 1 Map Filters NONE Filters NONE Steam 1 RUN: acc23afc-4908-43b5-bdb0-d38da841fd64